{"text_format":"2","workbook":"xlsx","n_sheets":4,"sheets":["4G","5G","4G中英表头","5G中英表头"],"not_rendered":{"charts":0,"images":0,"macros":0,"external_links":1,"defined_names":0,"comments":2,"pivot_tables":0},"unopened":[],"bounds":{"document_bytes":16777216,"sheet_cells":100000,"run_cost":"one","rows_first":2000,"rows_last":500,"rows_between":2000,"halvings":0,"cell_chars":16384,"cell_head_chars":4096},"cells_cut":0,"cells_raw":0,"read":"whole","date_system":"1900"}

{"sheet":"4G","index":0,"n_rows":37,"n_cols":5,"rows_kept":37,"cut":false,"hidden":false,"merged":[]}
["sdate","sdate",{"$f":"\"'\"&A1&\"':'\"&B1&\"'\"","v":"'sdate':'sdate'"},null,{"$f":"[1]!HY_UniStr(A1:A37,\"','\")","v":"sdate','地市编码','地市名称','区县编码','区县名称','网络名称','准确物理站名','BBU名称','ENODEBID','小区名称','小区ID','CGISAI','小区经度','小区纬度','方位角','天线挂高','机械下倾角','电子下倾角','站型（宏站/室分）','','下行频点','所属厂家','高校名称','铁塔站址编码','原产权','场景1_区域归属','场景2_是否场景基站','营销网格','5G终端数量','扇区收益','是否超忙','is_alive','is_alive_update_time','承建方（联通、电信）','是否共站址','对应共站址基站GNBID','is_same_address_ct',"}]
["地市编码","city_code",{"$f":"\"'\"&A2&\"':'\"&B2&\"'\"","v":"'地市编码':'city_code'"}]
["地市名称","city_name","'地市名称':'city_name'",null,{"$f":"[1]!HY_UniStr(C1:C37,\",\")","v":"'sdate':'sdate','地市编码':'city_code','地市名称':'city_name','区县编码':'district_code','区县名称':'district_name','网络名称':'network_name','准确物理站名':'phystation_address','BBU名称':'bbu_name','ENODEBID':'enbid','小区名称':'cell_name','小区ID':'cell_id','CGISAI':'cgi','小区经度':'lon','小区纬度':'lat','方位角':'direction','天线挂高':'height','机械下倾角':'m_downtilt','电子下倾角':'e_downtilt','站型（宏站/室分）':'station_type','':'isdigitalindoor','下行频点':'down_freq','所属厂家':'vender','高校名称':'own_schoolyard','铁塔站址编码':'toweraddress_code','原产权':'property','场景1_区域归属':'scene','场景2_是否场景基站':'is_scenesite','营销网格':'marketing_network','5G终端数量':'terminalamount_5g','扇区收益':'sector_incoming','是否超忙':'is_busy','is_alive':'is_alive','is_alive_update_time':'is_alive_update_time','承建方（联通、电信）':'construction','是否共站址':'is_same_address','对应共站址基站GNBID':'same_address_sites','is_same_address_ct':'is_same_address_ct'"}]
["区县编码","district_code","'区县编码':'district_code'"]
["区县名称","district_name","'区县名称':'district_name'"]
["网络名称","network_name","'网络名称':'network_name'"]
["准确物理站名","phystation_address","'准确物理站名':'phystation_address'"]
["BBU名称","bbu_name","'BBU名称':'bbu_name'"]
["ENODEBID","enbid","'ENODEBID':'enbid'",null,{"$f":"[1]!HY_UniStr(B2:B37,\",\")","v":"city_code,city_name,district_code,district_name,network_name,phystation_address,bbu_name,enbid,cell_name,cell_id,cgi,lon,lat,direction,height,m_downtilt,e_downtilt,station_type,isdigitalindoor,down_freq,vender,own_schoolyard,toweraddress_code,property,scene,is_scenesite,marketing_network,terminalamount_5g,sector_incoming,is_busy,is_alive,is_alive_update_time,construction,is_same_address,same_address_sites,is_same_address_ct"}]
["小区名称","cell_name","'小区名称':'cell_name'"]
["小区ID","cell_id","'小区ID':'cell_id'"]
["CGISAI","cgi","'CGISAI':'cgi'"]
["小区经度","lon","'小区经度':'lon'"]
["小区纬度","lat","'小区纬度':'lat'"]
["方位角","direction","'方位角':'direction'"]
["天线挂高","height","'天线挂高':'height'"]
["机械下倾角","m_downtilt","'机械下倾角':'m_downtilt'"]
["电子下倾角","e_downtilt","'电子下倾角':'e_downtilt'"]
["站型（宏站/室分）","station_type","'站型（宏站/室分）':'station_type'"]
[null,"isdigitalindoor","'':'isdigitalindoor'"]
["下行频点","down_freq","'下行频点':'down_freq'"]
["所属厂家","vender","'所属厂家':'vender'"]
["高校名称","own_schoolyard","'高校名称':'own_schoolyard'"]
["铁塔站址编码","toweraddress_code","'铁塔站址编码':'toweraddress_code'"]
["原产权","property","'原产权':'property'"]
["场景1_区域归属","scene","'场景1_区域归属':'scene'"]
["场景2_是否场景基站","is_scenesite","'场景2_是否场景基站':'is_scenesite'"]
["营销网格","marketing_network","'营销网格':'marketing_network'"]
["5G终端数量","terminalamount_5g","'5G终端数量':'terminalamount_5g'"]
["扇区收益","sector_incoming","'扇区收益':'sector_incoming'"]
["是否超忙","is_busy","'是否超忙':'is_busy'"]
["is_alive","is_alive","'is_alive':'is_alive'"]
["is_alive_update_time","is_alive_update_time","'is_alive_update_time':'is_alive_update_time'"]
["承建方（联通、电信）","construction","'承建方（联通、电信）':'construction'"]
["是否共站址","is_same_address","'是否共站址':'is_same_address'"]
["对应共站址基站GNBID","same_address_sites","'对应共站址基站GNBID':'same_address_sites'"]
["is_same_address_ct","is_same_address_ct","'is_same_address_ct':'is_same_address_ct'"]

{"sheet":"5G","index":1,"n_rows":37,"n_cols":5,"rows_kept":37,"cut":false,"hidden":false,"merged":[]}
["sdate","sdate",{"$f":"\"'\"&A1&\"':'\"&B1&\"'\"","v":"'sdate':'sdate'"},null,{"$f":"[1]!HY_UniStr(A1:A37,\"','\")","v":"sdate','地市编码','地市名称','区县编码','区县名称','网络名称','准确物理站名','BBU名称','GNBID','小区名称','小区ID','CGISAI','小区经度','小区纬度','方位角','天线挂高','机械下倾角','电子下倾角','站型（宏站/室分）','isdigitalindoor','下行频点','所属厂家','高校名称','铁塔站址编码','原产权','场景1_区域归属','场景2_是否场景基站','marketing_network','terminalamount_5g','sector_incoming','is_busy','is_alive','is_alive_update_time','承建方（联通、电信）','是否共站址','对应共站址基站ENODEBID','is_same_address_ct',"}]
["地市编码","city_code",{"$f":"\"'\"&A2&\"':'\"&B2&\"'\"","v":"'地市编码':'city_code'"}]
["地市名称","city_name",{"$f":"\"'\"&A3&\"':'\"&B3&\"'\"","v":"'地市名称':'city_name'"},null,{"$f":"[1]!HY_UniStr(C1:C37,\",\")","v":"'sdate':'sdate','地市编码':'city_code','地市名称':'city_name','区县编码':'district_code','区县名称':'district_name','网络名称':'network_name','准确物理站名':'phystation_address','BBU名称':'station_name','GNBID':'gnbid','小区名称':'cell_name','小区ID':'cell_id','CGISAI':'cgisai','小区经度':'lon','小区纬度':'lat','方位角':'direction','天线挂高':'height','机械下倾角':'m_downtilt','电子下倾角':'e_downtilt','站型（宏站/室分）':'station_type','isdigitalindoor':'isdigitalindoor','下行频点':'down_freq','所属厂家':'vender','高校名称':'own_schoolyard','铁塔站址编码':'toweraddress_code','原产权':'property','场景1_区域归属':'scene','场景2_是否场景基站':'is_scenesite','marketing_network':'marketing_network','terminalamount_5g':'terminalamount_5g','sector_incoming':'sector_incoming','is_busy':'is_busy','is_alive':'is_alive','is_alive_update_time':'is_alive_update_time','承建方（联通、电信）':'construction','是否共站址':'is_same_address','对应共站址基站ENODEBID':'same_address_sites','is_same_address_ct':'is_same_address_ct'"}]
["区县编码","district_code","'区县编码':'district_code'"]
["区县名称","district_name","'区县名称':'district_name'"]
["网络名称","network_name","'网络名称':'network_name'"]
["准确物理站名","phystation_address","'准确物理站名':'phystation_address'"]
["BBU名称","station_name","'BBU名称':'station_name'"]
["GNBID","gnbid","'GNBID':'gnbid'",null,"city_code,city_name,district_code,district_name,network_name,phystation_address,station_name,gnbid,cell_name,cell_id,cgisai,lon,lat,direction,height,m_downtilt,e_downtilt,station_type,isdigitalindoor,down_freq,vender,own_schoolyard,toweraddress_code,property,scene,is_scenesite,construction,is_same_address,same_address_sites"]
["小区名称","cell_name","'小区名称':'cell_name'"]
["小区ID","cell_id","'小区ID':'cell_id'"]
["CGISAI","cgisai","'CGISAI':'cgisai'",null,{"$f":"[1]!HY_UniStr(B2:B37,\",\")","v":"city_code,city_name,district_code,district_name,network_name,phystation_address,station_name,gnbid,cell_name,cell_id,cgisai,lon,lat,direction,height,m_downtilt,e_downtilt,station_type,isdigitalindoor,down_freq,vender,own_schoolyard,toweraddress_code,property,scene,is_scenesite,marketing_network,terminalamount_5g,sector_incoming,is_busy,is_alive,is_alive_update_time,construction,is_same_address,same_address_sites,is_same_address_ct"}]
["小区经度","lon","'小区经度':'lon'"]
["小区纬度","lat","'小区纬度':'lat'"]
["方位角","direction","'方位角':'direction'"]
["天线挂高","height","'天线挂高':'height'"]
["机械下倾角","m_downtilt","'机械下倾角':'m_downtilt'"]
["电子下倾角","e_downtilt","'电子下倾角':'e_downtilt'"]
["站型（宏站/室分）","station_type","'站型（宏站/室分）':'station_type'"]
["isdigitalindoor","isdigitalindoor","'isdigitalindoor':'isdigitalindoor'"]
["下行频点","down_freq","'下行频点':'down_freq'"]
["所属厂家","vender","'所属厂家':'vender'"]
["高校名称","own_schoolyard","'高校名称':'own_schoolyard'"]
["铁塔站址编码","toweraddress_code","'铁塔站址编码':'toweraddress_code'"]
["原产权","property","'原产权':'property'"]
["场景1_区域归属","scene","'场景1_区域归属':'scene'"]
["场景2_是否场景基站","is_scenesite","'场景2_是否场景基站':'is_scenesite'"]
["marketing_network","marketing_network","'marketing_network':'marketing_network'"]
["terminalamount_5g","terminalamount_5g","'terminalamount_5g':'terminalamount_5g'"]
["sector_incoming","sector_incoming",{"$f":"\"'\"&A30&\"':'\"&B30&\"'\"","v":"'sector_incoming':'sector_incoming'"}]
["is_busy","is_busy","'is_busy':'is_busy'"]
["is_alive","is_alive","'is_alive':'is_alive'"]
["is_alive_update_time","is_alive_update_time","'is_alive_update_time':'is_alive_update_time'"]
["承建方（联通、电信）","construction","'承建方（联通、电信）':'construction'"]
["是否共站址","is_same_address","'是否共站址':'is_same_address'"]
["对应共站址基站ENODEBID","same_address_sites","'对应共站址基站ENODEBID':'same_address_sites'"]
["is_same_address_ct","is_same_address_ct","'is_same_address_ct':'is_same_address_ct'"]

{"sheet":"4G中英表头","index":2,"n_rows":32,"n_cols":4,"rows_kept":32,"cut":false,"hidden":false,"merged":[]}
["地市编码","city_code"]
["地市名称","city_name",null,{"$f":"[1]!HY_UniStr(B1:B32,\",\")","v":"city_code,city_name,district_code,district_name,network_name,phystation_address,bbu_name,enbid,cell_name,cell_id,cgi,lon,lat,direction,height,m_downtilt,e_downtilt,station_type,down_freq,vender,own_schoolyard,toweraddress_code,property,scene,construction,is_same_address,same_address_sites,user_plane_ip,tac,unit_type,freq_band,tr_mode"}]
["区县编码","district_code"]
["区县名称","district_name"]
["网络名称","network_name"]
["准确物理站名","phystation_address"]
["BBU名称","bbu_name"]
["ENODEBID","enbid"]
["小区名称","cell_name"]
["小区ID","cell_id"]
["CGISAI","cgi"]
["小区经度","lon"]
["小区纬度","lat"]
["方位角","direction"]
["天线挂高","height"]
["机械下倾角","m_downtilt"]
["电子下倾角","e_downtilt"]
["站型（宏站/室分）","station_type"]
["下行频点","down_freq"]
["所属厂家","vender"]
["高校名称","own_schoolyard"]
["铁塔站址编码","toweraddress_code"]
["原产权","property"]
["场景1_区域归属","scene"]
["承建方（联通、电信）","construction"]
["是否共站址","is_same_address"]
["对应共站址基站GNBID","same_address_sites"]
["用户面IP地址","user_plane_ip"]
["跟踪区编码","tac"]
["设备型号","unit_type"]
["天馈类型","freq_band"]
["收发模式","tr_mode"]

{"sheet":"5G中英表头","index":3,"n_rows":33,"n_cols":4,"rows_kept":33,"cut":false,"hidden":false,"merged":[]}
["地市编码","city_code"]
["地市名称","city_name",null,{"$f":"[1]!HY_UniStr(B1:B33,\",\")","v":"city_code,city_name,district_code,district_name,network_name,phystation_address,station_name,gnbid,cell_name,cell_id,cgisai,lon,lat,direction,height,m_downtilt,e_downtilt,station_type,down_freq,vender,own_schoolyard,toweraddress_code,property,scene,is_scenesite,construction,is_same_address,same_address_sites,share_4g_operator,user_plane_ip,unit_type,freq_band,tr_mode"}]
["区县编码","district_code"]
["区县名称","district_name",null,{"$f":"[1]!HY_UniStr(A1:A33,\"','\")","v":"地市编码','地市名称','区县编码','区县名称','网络名称','准确物理站名','BBU名称','GNBID','小区名称','小区ID','CGISAI','小区经度','小区纬度','方位角','天线挂高','机械下倾角','电子下倾角','站型（宏站/室分）','下行频点','所属厂家','高校名称','铁塔站址编码','原产权','场景1_区域归属','场景2_是否场景基站','承建方（联通、电信）','是否共站址','对应共站址基站ENODEBID','共站址4G运营商','用户面IP地址','设备型号','频段','收发模式',"}]
["网络名称","network_name"]
["准确物理站名","phystation_address"]
["BBU名称","station_name"]
["GNBID","gnbid"]
["小区名称","cell_name"]
["小区ID","cell_id"]
["CGISAI","cgisai"]
["小区经度","lon"]
["小区纬度","lat"]
["方位角","direction"]
["天线挂高","height"]
["机械下倾角","m_downtilt"]
["电子下倾角","e_downtilt"]
["站型（宏站/室分）","station_type"]
["下行频点","down_freq"]
["所属厂家","vender"]
["高校名称","own_schoolyard"]
["铁塔站址编码","toweraddress_code"]
["原产权","property"]
["场景1_区域归属","scene"]
["场景2_是否场景基站","is_scenesite"]
["承建方（联通、电信）","construction"]
["是否共站址","is_same_address"]
["对应共站址基站ENODEBID","same_address_sites"]
["共站址4G运营商","share_4g_operator"]
["用户面IP地址","user_plane_ip"]
["设备型号","unit_type"]
["频段","freq_band"]
["收发模式","tr_mode"]